fUSD/lending_fUSD_20250309
["ID","MTS","AMOUNT","RATE_DAILY","PERIOD"]
[355758631,1741539736412,176.41,8.134e-05,2]
[355758632,1741539790260,2000.0,8.129e-05,2]
[355758633,1741539798300,500.0,0.00026728,120]
[355758634,1741539876556,1262.9,8.141e-05,2]
[355758636,1741540118834,-250.0,8.219e-05,2]
[355758637,1741540118865,-736.40189979,8.219e-05,2]
[355758638,1741540127695,739.34,8.119e-05,2]
[355758640,1741540143915,-109.45810021,8.219e-05,2]
[355758641,1741540143947,-924.69845126,8.219e-05,2]
[355758699,1741540181263,150.0,0.00028,120]
[355758700,1741540181557,150.0,0.00028,120]
[355758701,1741540187638,1446.47,8.183e-05,2]
[355758702,1741540211845,335.67,8.1e-05,2]
[355758703,1741540212268,335.67,8.126e-05,2]
[355758704,1741540212510,335.67,8.152e-05,2]
[355758705,1741540212712,335.67,8.177e-05,2]
[355758736,1741540231685,-335.67,8.203e-05,2]
[355758737,1741540231695,-75.30154874,8.219e-05,2]
[355758738,1741540231706,-335.67,8.228e-05,2]
[355758739,1741540231717,-335.67,8.254e-05,2]
[355758740,1741540231727,-335.67,8.28e-05,2]
[355758741,1741540231737,-335.67,8.305e-05,2]
[355758742,1741540231747,-335.67,8.331e-05,2]
[355758743,1741540231757,-335.67,8.356e-05,2]
[355758744,1741540231767,-20.11641126,8.382e-05,2]
[355758745,1741540231779,-315.55358874,8.382e-05,2]
[355758746,1741540231790,-168.1,8.393e-05,2]
[355758747,1741540231799,-335.67,8.407e-05,2]
[355758748,1741540231809,-335.67,8.433e-05,2]
[355758749,1741540231819,-335.67,8.459e-05,2]
[355758750,1741540231829,-335.67,8.484e-05,2]
[355758751,1741540231838,-335.67,8.51e-05,2]
[355758752,1741540231848,-335.67,8.535e-05,2]
[355758753,1741540231857,-335.67,8.561e-05,2]
[355758754,1741540231866,-246.82229996,8.587e-05,2]
[355758755,1741540231890,-88.84770004,8.587e-05,2]
[355758756,1741540231900,-165.01,8.684e-05,2]
[355758757,1741540231910,-168.47,8.692e-05,2]
[355758758,1741540231920,-168.47,8.72e-05,2]
[355758759,1741540231930,-168.47,8.747e-05,2]
[355758760,1741540231940,-168.47,8.774e-05,2]
[355758761,1741540231950,-98.41258953,8.796e-05,2]
[355758762,1741540231974,-263.61894973,8.796e-05,2]
[355758763,1741540231984,-200.0,8.8e-05,3]
[355758764,1741540231994,-168.47,8.802e-05,2]
[355758765,1741540232010,-1266.45892796,8.802e-05,2]
[355758766,1741540232020,-168.47,8.829e-05,2]
[355758767,1741540232031,-168.47,8.856e-05,2]
[355758768,1741540232040,-168.47,8.883e-05,2]
[355758769,1741540232050,-73.71898513,8.884e-05,2]
[355758770,1741540232062,-659.50637999,8.884e-05,2]
[355758773,1741540232089,-533.23356282,8.884e-05,2]
[355758775,1741540232099,-500.0,8.9e-05,3]
[355758777,1741540232109,-168.47,8.911e-05,2]
[355758778,1741540232118,-168.47,8.938e-05,2]
[355758780,1741540232128,-168.47,8.965e-05,2]
[355758782,1741540232137,-168.47,8.993e-05,2]
[355758784,1741540232147,-550.0,9e-05,2]
[355758785,1741540232156,-800.0,9e-05,3]
[355758787,1741540232166,-168.47,9.02e-05,2]
[355758789,1741540232175,-150.0,9.041e-05,2]
[355758791,1741540232184,-150.0,9.041e-05,2]
[355758792,1741540232194,-550.0,9.041e-05,2]
[355758794,1741540232204,-258.25658459,9.047e-05,2]
[355758796,1741540232218,-41.74341541,9.047e-05,2]
[355758798,1741540232228,-168.47,9.047e-05,2]
[355758799,1741540232238,-168.47,9.075e-05,2]
[355758801,1741540232247,-168.47,9.102e-05,2]
[355758803,1741540232258,-150.0,9.102e-05,2]
[355758805,1741540232268,-26.98858459,9.129e-05,2]
[355758807,1741540232279,-141.48141541,9.129e-05,2]
[355758808,1741540232289,-367.91,9.133e-05,2]
[355758810,1741540232298,-168.47,9.156e-05,2]
[355758813,1741540232308,-80.02858509,9.161e-05,2]
[355758816,1741540232319,-510.674481,9.161e-05,2]
[355758819,1741540232330,-195.29693391,9.161e-05,2]
[355758821,1741540232340,-802.342,9.161e-05,2]
[355758823,1741540232349,-541.0,9.161e-05,2]
[355758825,1741540232359,-150.0,9.169e-05,2]
[355758827,1741540232368,-1012.0,9.169e-05,2]
[355758828,1741540232377,-530.4538,9.242e-05,2]
[355758829,1741540232387,-1303.4988,9.242e-05,2]
[355758830,1741540232398,-449.96852744,9.243e-05,2]
[355758863,1741540237451,-880.30029246,9.169e-05,2]
[355758864,1741540237463,-313.8553746,9.169e-05,2]
[355758865,1741540237479,-27.59433294,9.169e-05,2]
[355758866,1741540237488,-9225.33177256,9.243e-05,2]
[355758867,1741540237498,-1000.0,9.247e-05,2]
[355758868,1741540237507,-150.0,9.257e-05,2]
[355758869,1741540237517,-2032.0,9.257e-05,2]
[355758870,1741540237526,-1278.0,9.257e-05,2]
[355758871,1741540237536,-641.0,9.257e-05,2]
[355758872,1741540237545,-652.979,9.257e-05,2]
[355758873,1741540237555,-1459.0,9.257e-05,2]
[355758874,1741540237565,-790.430407,9.27e-05,2]
[355758875,1741540237575,-152.99719112,9.323e-05,2]
[355758876,1741540237584,-2168.1718434,9.337e-05,2]
[355758877,1741540237594,-607.8994621,9.337e-05,2]
[355758878,1741540237608,-1259.3908733,9.337e-05,2]
[355758879,1741540237618,-173.504,9.338e-05,2]
[355758880,1741540237629,-1118.012,9.339e-05,2]
[355758881,1741540237639,-500.0,9.341e-05,2]
[355758882,1741540237648,-517.08541294,9.341e-05,2]
[355758883,1741540237658,-164.48368374,9.341e-05,2]
[355758884,1741540237668,-500.0,9.341e-05,2]
[355758885,1741540237679,-500.0,9.341e-05,2]
[355758886,1741540237688,-598.98,9.341e-05,2]
[355758887,1741540237698,-500.0,9.341e-05,2]
[355758888,1741540237708,-500.0,9.341e-05,2]
[355758889,1741540237717,-500.0,9.341e-05,2]
[355758891,1741540237729,-500.0,9.341e-05,2]
[355758892,1741540237738,-500.0,9.341e-05,2]
[355758893,1741540237748,-500.0,9.341e-05,2]
[355758894,1741540237757,-500.0,9.341e-05,2]
[355758895,1741540237767,-500.0,9.341e-05,2]
[355758896,1741540237777,-500.0,9.341e-05,2]
[355758897,1741540237786,-500.0,9.341e-05,2]
[355758898,1741540237795,-530.56,9.341e-05,2]
[355758899,1741540237805,-500.0,9.341e-05,2]
[355758900,1741540237815,-571.74,9.341e-05,2]
[355758901,1741540237825,-500.0,9.341e-05,2]
[355758902,1741540237835,-500.0,9.341e-05,2]
[355758903,1741540237844,-500.0,9.341e-05,2]
[355758904,1741540237854,-500.0,9.341e-05,2]
[355758905,1741540237863,-500.0,9.341e-05,2]
[355758906,1741540237873,-500.0,9.341e-05,2]
[355758907,1741540237882,-500.0,9.341e-05,2]
[355758908,1741540237894,-500.0,9.341e-05,2]
[355758909,1741540237903,-500.0,9.341e-05,2]
[355758931,1741540238164,-500.0,9.341e-05,2]
[355758933,1741540238174,-500.0,9.341e-05,2]
[355758935,1741540238184,-500.0,9.341e-05,2]
[355758937,1741540238193,-500.0,9.341e-05,2]
[355758939,1741540238203,-500.0,9.341e-05,2]
[355758941,1741540238212,-500.0,9.341e-05,2]
[355758943,1741540238225,-500.0,9.341e-05,2]
[355758945,1741540238235,-500.0,9.341e-05,2]
[355758947,1741540238245,-500.0,9.341e-05,2]
[355758949,1741540238255,-198.06099012,9.341e-05,2]
[355758951,1741540238263,-162.17359788,9.341e-05,2]
[355758953,1741540238272,-500.0,9.341e-05,2]
[355758954,1741540238282,-500.0,9.341e-05,2]
[355758955,1741540238291,-520.61932954,9.341e-05,2]
[355758956,1741540238301,-500.0,9.341e-05,2]
[355758957,1741540238310,-644.9,9.341e-05,2]
[355758958,1741540238319,-500.0,9.341e-05,2]
[355758959,1741540238328,-686.2,9.341e-05,2]
[355758960,1741540238338,-544.76047316,9.341e-05,2]
[355758961,1741540238348,-500.0,9.341e-05,2]
[355758962,1741540238357,-1590.95,9.341e-05,2]
[355758963,1741540238367,-1625.22,9.341e-05,2]
[355758964,1741540238384,-896.57,9.341e-05,2]
[355758967,1741540238397,-500.0,9.341e-05,2]
[355758969,1741540238407,-500.0,9.341e-05,2]
[355758971,1741540238417,-1197.46,9.341e-05,2]
[355758973,1741540238428,-1040.08,9.341e-05,2]
[355758974,1741540238442,-502.04,9.341e-05,2]
[355758976,1741540238454,-547.24554913,9.341e-05,2]
[355758978,1741540238464,-500.0,9.341e-05,2]
[355758980,1741540238475,-728.82,9.341e-05,2]
[355758982,1741540238485,-557.52,9.341e-05,2]
[355758984,1741540238495,-500.0,9.341e-05,2]
[355758986,1741540238505,-500.0,9.341e-05,2]
[355758988,1741540238515,-1696.02,9.341e-05,2]
[355758990,1741540238526,-6144.75620654,9.341e-05,2]
[355758993,1741540238540,-2283.63668403,9.341e-05,2]
[355758995,1741540238552,-1497.41710943,9.341e-05,2]
[355758997,1741540238563,-500.0,9.341e-05,2]
[355758999,1741540238572,-256.35683058,9.341e-05,2]
[355759001,1741540238583,-500.0,9.341e-05,2]
[355759003,1741540238592,-500.0,9.341e-05,2]
[355759005,1741540238602,-500.0,9.341e-05,2]
[355759007,1741540238612,-500.0,9.341e-05,2]
[355759009,1741540238622,-500.0,9.341e-05,2]
[355759011,1741540238632,-500.0,9.341e-05,2]
[355759013,1741540238642,-500.0,9.341e-05,2]
[355759015,1741540238652,-572.22,9.341e-05,2]
[355759017,1741540238662,-500.0,9.341e-05,2]
[355759019,1741540238672,-541.95,9.341e-05,2]
[355759021,1741540238683,-500.0,9.341e-05,2]
[355759023,1741540238693,-500.0,9.341e-05,2]
[355759025,1741540238703,-500.0,9.341e-05,2]
[355759027,1741540238713,-1137.61,9.341e-05,2]
[355759029,1741540238723,-500.0,9.341e-05,2]
[355759031,1741540238735,-1385.91,9.341e-05,2]
[355759033,1741540238745,-1272.11065999,9.341e-05,2]
[355759036,1741540238758,-1294.475,9.341e-05,2]
[355759038,1741540238770,-3148.27434001,9.341e-05,2]
[355759040,1741540238780,-638.51,9.341e-05,2]
[355759042,1741540238790,-500.0,9.342e-05,2]
[355759044,1741540238800,-382.44192189,9.342e-05,2]
[355759046,1741540238809,-305.9137381,9.342e-05,2]
[355759049,1741540238829,-194.0862619,9.342e-05,2]
[355759051,1741540238838,-500.0,9.342e-05,2]
[355759053,1741540238848,-740.94,9.342e-05,2]
[355759055,1741540238859,-500.0,9.342e-05,2]
[355759057,1741540238868,-500.0,9.342e-05,2]
[355759059,1741540238883,-500.0,9.342e-05,2]
[355759060,1741540238898,-500.0,9.342e-05,2]
[355759061,1741540238907,-684.34,9.342e-05,2]
[355759062,1741540238916,-500.0,9.342e-05,2]
[355759063,1741540238926,-500.0,9.342e-05,2]
[355759064,1741540238935,-1177.5,9.342e-05,2]
[355759065,1741540238945,-745.84,9.342e-05,2]
[355759066,1741540238954,-1752.2937381,9.342e-05,2]
[355759067,1741540238966,-3213.4162619,9.342e-05,2]
[355759068,1741540238978,-500.0,9.342e-05,2]
[355759069,1741540238988,-558.73,9.342e-05,2]
[355759070,1741540238997,-407.699647,9.342e-05,2]
[355759071,1741540239006,-1152.04,9.342e-05,2]
[355759073,1741540239015,-500.0,9.342e-05,2]
[355759074,1741540239025,-1904.04,9.342e-05,2]
[355759076,1741540239035,-989.31,9.342e-05,2]
[355759078,1741540239045,-612.66,9.342e-05,2]
[355759080,1741540239055,-1002.07,9.342e-05,2]
[355759082,1741540239065,-262.14933423,9.342e-05,2]
[355759084,1741540239075,-502.44,9.342e-05,2]
[355759086,1741540239085,-223.853005,9.342e-05,2]
[355759088,1741540239094,-867.38,9.342e-05,2]
[355759090,1741540239104,-865.09,9.342e-05,2]
[355759092,1741540239114,-821.38,9.342e-05,2]
[355759094,1741540239123,-1164.1,9.342e-05,2]
[355759096,1741540239133,-725.51,9.342e-05,2]
[355759098,1741540239142,-692.12,9.342e-05,2]
[355759100,1741540239152,-503.75,9.342e-05,2]
[355759102,1741540239161,-640.61,9.342e-05,2]
[355759104,1741540239170,-500.0,9.342e-05,2]
[355759106,1741540239180,-1080.02,9.342e-05,2]
[355759108,1741540239189,-1308.27,9.342e-05,2]
[355759110,1741540239198,-858.21,9.342e-05,2]
[355759112,1741540239207,-919.8,9.342e-05,2]
[355759114,1741540239216,-1106.39,9.342e-05,2]
[355759116,1741540239226,-1496.58,9.342e-05,2]
[355759118,1741540239235,-1030.6,9.342e-05,2]
[355759120,1741540239244,-500.0,9.342e-05,2]
[355759122,1741540239254,-1159.53,9.342e-05,2]
[355759124,1741540239267,-500.0,9.342e-05,2]
[355759126,1741540239277,-2291.02,9.342e-05,2]
[355759128,1741540239286,-500.0,9.342e-05,2]
[355759131,1741540239295,-1758.63,9.342e-05,2]
[355759133,1741540239304,-1121.91,9.342e-05,2]
[355759135,1741540239314,-751.08,9.342e-05,2]
[355759137,1741540239323,-651.31,9.342e-05,2]
[355759139,1741540239332,-732.85,9.342e-05,2]
[355759141,1741540239341,-3847.54,9.342e-05,2]
[355759143,1741540239350,-1092.63,9.342e-05,2]
[355759145,1741540239359,-592.16,9.342e-05,2]
[355759147,1741540239369,-1918.09,9.342e-05,2]
[355759149,1741540239378,-656.41,9.342e-05,2]
[355759151,1741540239387,-685.34,9.342e-05,2]
[355759154,1741540239398,-1315.08,9.342e-05,2]
[355759156,1741540239408,-627.91,9.342e-05,2]
[355759158,1741540239418,-500.0,9.342e-05,2]
[355759160,1741540239428,-500.0,9.342e-05,2]
[355759162,1741540239438,-750.92,9.342e-05,2]
[355759164,1741540239448,-500.0,9.342e-05,2]
[355759166,1741540239458,-2522.33,9.342e-05,2]
[355759168,1741540239467,-2588.09,9.342e-05,2]
[355759170,1741540239478,-120.90006545,9.342e-05,2]
[355759198,1741540239745,-378.99822412,9.342e-05,2]
[355759201,1741540239762,-0.10171043,9.342e-05,2]
[355759203,1741540239772,-500.0,9.342e-05,2]
[355759205,1741540239782,-654.4,9.342e-05,2]
[355759207,1741540239791,-500.0,9.342e-05,2]
[355759209,1741540239801,-500.0,9.342e-05,2]
[355759211,1741540239810,-766.47,9.342e-05,2]
[355759214,1741540239820,-500.0,9.342e-05,2]
[355759216,1741540239829,-724.11,9.342e-05,2]
[355759218,1741540239839,-174.70281333,9.342e-05,2]
[355759220,1741540239849,-500.0,9.342e-05,2]
[355759222,1741540239858,-500.0,9.342e-05,2]
[355759224,1741540239868,-500.0,9.342e-05,2]
[355759226,1741540239878,-500.0,9.342e-05,2]
[355759228,1741540239889,-500.0,9.342e-05,2]
[355759230,1741540239898,-420.30450398,9.342e-05,2]
[355759232,1741540239908,-500.0,9.342e-05,2]
[355759234,1741540239918,-2264.0,9.343e-05,2]
[355759236,1741540239927,-144997.71990194,9.343e-05,2]
[355759238,1741540239939,-273.57256366,9.343e-05,2]
[355759240,1741540239952,-305.1527102,9.343e-05,2]
[355759242,1741540239968,-432.21694529,9.343e-05,2]
[355759244,1741540239982,-319.62916365,9.343e-05,2]
[355759254,1741540240067,-634.427458,9.343e-05,2]
[355759257,1741540240085,-2175.67349998,9.343e-05,2]
[355759259,1741540240096,-48730.19246817,9.343e-05,2]
[355759262,1741540240115,-895.56848558,9.343e-05,2]
[355759281,1741540240292,-80098.10578699,9.343e-05,2]
[355759284,1741540240307,-9162.51095009,9.343e-05,2]
[355759529,1741540242574,-500.0,9.341e-05,2]
[355759532,1741540242585,-1524.66,9.342e-05,2]
[355759535,1741540242594,-1648.79223442,9.343e-05,2]
[355759596,1741540243174,-3724.87137596,9.343e-05,2]
[355759598,1741540243191,-11164.43163635,9.343e-05,2]
[355759600,1741540243203,-2404.8,9.343e-05,2]
[355759603,1741540243214,-284068.70026745,9.343e-05,2]
[355759605,1741540243226,-496.77073561,9.343e-05,2]
[355759606,1741540243240,-279.99999965,9.343e-05,2]
[355759607,1741540243257,-66657.64910273,9.343e-05,2]
[355759608,1741540243269,-25186.3396482,9.343e-05,2]
[355759609,1741540243279,-2048.0,9.343e-05,2]
[355759610,1741540243290,-11947.46512548,9.343e-05,2]
[355759836,1741540245539,-500.0,9.341e-05,2]
[355759838,1741540245549,-500.0,9.342e-05,2]
[355759840,1741540245559,-1104.04,9.342e-05,2]
[355759842,1741540245568,-18408.26000009,9.343e-05,2]
[355759844,1741540245580,-540.25766701,9.343e-05,2]
[355759847,1741540245598,-105686.4421917,9.343e-05,2]
[355759849,1741540245607,-913.5578083,9.343e-05,2]
[355759851,1741540245618,-2567.4000004,9.343e-05,2]
[355759855,1741540245648,-13051.45287026,9.343e-05,2]
[355759857,1741540245659,-45423.79999927,9.343e-05,2]
[355759860,1741540245670,-855.65800931,9.343e-05,2]
[355759869,1741540245757,-589.30877844,9.343e-05,2]
[355759871,1741540245769,-58000.578,9.343e-05,2]
[355759881,1741540245857,-53422.30560784,9.343e-05,2]
[355759884,1741540245870,-3338.75104588,9.343e-05,2]
[355759886,1741540245882,-5303.23989546,9.343e-05,2]
[355759889,1741540245911,-343.33999999,9.343e-05,2]
[355759892,1741540245923,-214999.999,9.343e-05,2]
[355760053,1741540496217,150.0,0.00028,120]
[355760055,1741541145183,803.56,8.219e-05,2]
[355760057,1741541200898,44116.0,0.00028,120]
[355760079,1741541333450,-1000.0,8.38e-05,2]
[355760080,1741541333477,-300.0,8.416e-05,2]
[355760081,1741541333504,-4052.98729802,8.417e-05,2]
[355760082,1741541333747,-5352.98729802,8.417e-05,2]
[355760083,1741541333793,-5352.98729802,8.417e-05,2]
[355760084,1741541333824,-5352.98729802,8.417e-05,2]
[355760085,1741541334074,-2776.30443106,8.417e-05,2]
[355760160,1741541431651,-1011.74637686,8.417e-05,2]
[355760162,1741541431661,-341.24835226,8.489e-05,2]
[355760163,1741541431766,-326.66278107,8.489e-05,2]
[355760164,1741541431820,-445.61213266,8.489e-05,2]
[355760165,1741541431877,-588.95673401,8.489e-05,2]
[355760166,1741541431887,-27.8492137,8.546e-05,2]
[355760167,1741541431899,-648.9807863,8.546e-05,2]
[355760168,1741541431908,-742.10211261,8.562e-05,2]
[355760169,1741541431919,-1257.89788739,8.562e-05,2]
[355760170,1741541431928,-2032.19511261,8.687e-05,2]
[355760171,1741541431939,-533.63596001,8.687e-05,2]
[355760172,1741541431999,-2752.44892738,8.687e-05,2]
[355760173,1741541432009,-380.0,8.767e-05,2]
[355760174,1741541432018,-168.56,8.772e-05,2]
[355760175,1741541432027,-399.94346221,8.849e-05,2]
[355760176,1741541432037,-150.0,8.964e-05,2]
[355760177,1741541432046,-550.0,8.964e-05,2]
[355760178,1741541432055,-150.0,9.178e-05,2]
[355760180,1741541432065,-357.56,9.178e-05,2]
[355760182,1741541432074,-301.7938,9.189e-05,2]
[355760184,1741541432083,-150.0,9.191e-05,2]
[355760185,1741541432092,-550.0,9.191e-05,2]
[355760187,1741541432101,-2353.44931041,9.192e-05,2]
[355760200,1741541437609,-2115.47849276,9.192e-05,2]
[355760201,1741541437679,-733.59477016,9.192e-05,2]
[355760202,1741541437691,-3883.52869532,9.192e-05,2]
[355760203,1741541437702,-7164.68028061,9.192e-05,2]
[355760204,1741541437711,-539.6694,9.242e-05,2]
[355760205,1741541437721,-1088.3143,9.243e-05,2]
[355760206,1741541437730,-150.0,9.28e-05,2]
[355760207,1741541437742,-786.0,9.281e-05,2]
[355760208,1741541437751,-1399.704,9.281e-05,2]
[355760209,1741541437760,-907.0,9.281e-05,2]
[355760210,1741541437769,-1235.77,9.281e-05,2]
[355760211,1741541437779,-541.0,9.281e-05,2]
[355760212,1741541437788,-4033.517,9.281e-05,2]
[355760213,1741541437797,-181.5530194,9.281e-05,2]
[355760214,1741541437809,-931.4469806,9.281e-05,2]
[355760215,1741541437819,-352.0280194,9.281e-05,2]
[355760216,1741541437834,-198.3219806,9.281e-05,2]
[355760217,1741541437844,-285.93622033,9.281e-05,2]
[355760218,1741541437855,-357.06377967,9.281e-05,2]
[355760219,1741541437864,-1278.0,9.281e-05,2]
[355760220,1741541437873,-1387.60305885,9.289e-05,2]
[355760221,1741541437885,-21229.59006756,9.289e-05,2]
[355760222,1741541437902,-955.75932495,9.289e-05,2]
[355760224,1741541437913,-3602.89999996,9.289e-05,2]
[355760226,1741541437925,-10176.09539624,9.289e-05,2]
[355760228,1741541437934,-1321.819,9.337e-05,2]
[355760230,1741541437943,-178.004,9.337e-05,2]
[355760232,1741541437953,-1905.0627591,9.337e-05,2]
[355760233,1741541437988,150.0,0.00028,120]
[355760234,1741541439385,150.0,0.00028,120]
[355760244,1741541439694,200.0,0.00028,120]
[355760245,1741541439760,-284.90806491,9.337e-05,2]
[355760246,1741541439819,-557.79275677,9.337e-05,2]
[355760247,1741541439830,-1652.3208,9.337e-05,2]
[355760248,1741541439842,-462.81849573,9.337e-05,2]
[355760249,1741541439993,-306.78964439,9.337e-05,2]
[355760250,1741541440003,-950.61115561,9.337e-05,2]
[355760251,1741541440046,-613.45548187,9.337e-05,2]
[355760252,1741541440058,-807.19350742,9.337e-05,2]
[355760253,1741541440068,-81.78939148,9.34e-05,2]
[355760254,1741541440159,-2254.27808581,9.34e-05,2]
[355760427,1741541442760,-1012.0,9.281e-05,2]
[355760429,1741541442769,-1988.0,9.34e-05,2]
[355760431,1741541442785,-10997.49310527,9.34e-05,2]
[355760434,1741541442796,-9891.48735255,9.34e-05,2]
[355760436,1741541442805,-822.45,9.341e-05,2]
[355760438,1741541442815,-699.4,9.341e-05,2]
[355760440,1741541442824,-500.0,9.341e-05,2]
[355760441,1741541442834,-1412.03,9.341e-05,2]
[355760443,1741541442844,-1035.02,9.341e-05,2]
[355760445,1741541442853,-1060.29,9.341e-05,2]
[355760447,1741541442863,-624.17,9.341e-05,2]
[355760448,1741541442873,-500.0,9.341e-05,2]
[355760449,1741541442882,-500.0,9.341e-05,2]
[355760450,1741541442891,-1047.1,9.341e-05,2]
[355760451,1741541442901,-912.89,9.341e-05,2]
[355760452,1741541442910,-1075.17,9.341e-05,2]
[355760453,1741541442919,-629.06,9.341e-05,2]
[355760454,1741541442929,-702.32,9.341e-05,2]
[355760455,1741541442938,-1260.29,9.341e-05,2]
[355760456,1741541442948,-656.78,9.341e-05,2]
[355760457,1741541442958,-719.63,9.341e-05,2]
[355760458,1741541442967,-601.75,9.341e-05,2]
[355760459,1741541442977,-500.0,9.341e-05,2]
[355760460,1741541442988,-500.0,9.341e-05,2]
[355760461,1741541442999,-2417.23,9.341e-05,2]
[355760462,1741541443008,-500.0,9.341e-05,2]
[355760464,1741541443017,-655.83,9.341e-05,2]
[355760466,1741541443027,-734.53,9.341e-05,2]
[355760468,1741541443036,-223.853005,9.342e-05,2]
[355760470,1741541443045,-407.699647,9.342e-05,2]
[355760471,1741541443054,-170.32,9.342e-05,2]
[355760472,1741541443063,-1500.0,9.342e-05,2]
[355760474,1741541443074,-500.0,9.342e-05,2]
[355760475,1741541443083,-710.07,9.342e-05,2]
[355760476,1741541443092,-618.63336901,9.342e-05,2]
[355760477,1741541443102,-500.0,9.342e-05,2]
[355760478,1741541443112,-500.0,9.342e-05,2]
[355760479,1741541443122,-500.0,9.342e-05,2]
[355760480,1741541443132,-500.0,9.342e-05,2]
[355760481,1741541443142,-500.0,9.342e-05,2]
[355760482,1741541443153,-500.0,9.342e-05,2]
[355760483,1741541443162,-500.0,9.342e-05,2]
[355760484,1741541443172,-500.0,9.342e-05,2]
[355760485,1741541443182,-500.0,9.342e-05,2]
[355760487,1741541443193,-466.81,9.342e-05,2]
[355760489,1741541443203,-500.0,9.342e-05,2]
[355760491,1741541443213,-412.82,9.342e-05,2]
[355760493,1741541443223,-500.0,9.342e-05,2]
[355760495,1741541443232,-500.0,9.342e-05,2]
[355760497,1741541443244,-406.43,9.342e-05,2]
[355760499,1741541443254,-500.0,9.342e-05,2]
[355760501,1741541443263,-500.0,9.342e-05,2]
[355760503,1741541443272,-500.0,9.342e-05,2]
[355760505,1741541443284,-500.0,9.342e-05,2]
[355760507,1741541443295,-500.0,9.342e-05,2]
[355760509,1741541443305,-500.0,9.342e-05,2]
[355760511,1741541443314,-500.0,9.342e-05,2]
[355760512,1741541443329,-500.0,9.342e-05,2]
[355760513,1741541443339,-500.0,9.342e-05,2]
[355760514,1741541443349,-500.0,9.342e-05,2]
[355760515,1741541443361,-500.0,9.342e-05,2]
[355760516,1741541443370,-500.0,9.342e-05,2]
[355760517,1741541443379,-500.0,9.342e-05,2]
[355760518,1741541443388,-500.0,9.342e-05,2]
[355760519,1741541443398,-500.0,9.342e-05,2]
[355760520,1741541443408,-500.0,9.342e-05,2]
[355760521,1741541443418,-500.0,9.342e-05,2]
[355760522,1741541443428,-500.0,9.342e-05,2]
[355760523,1741541443438,-4758.8,9.342e-05,2]
[355760524,1741541443448,-1579.25,9.342e-05,2]
[355760525,1741541443458,-1147.57,9.342e-05,2]
[355760526,1741541443468,-1128.44,9.342e-05,2]
[355760527,1741541443478,-256.2949975,9.342e-05,2]
[355760528,1741541443488,-535.45,9.342e-05,2]
[355760529,1741541443497,-859.21,9.342e-05,2]
[355760530,1741541443506,-996.75,9.342e-05,2]
[355760531,1741541443515,-500.0,9.342e-05,2]
[355760532,1741541443524,-500.0,9.342e-05,2]
[355760533,1741541443534,-948.09,9.342e-05,2]
[355760534,1741541443544,-1824.7,9.342e-05,2]
[355760535,1741541443554,-500.0,9.342e-05,2]
[355760536,1741541443566,-968.71,9.342e-05,2]
[355760537,1741541443576,-500.0,9.342e-05,2]
[355760538,1741541443586,-500.0,9.342e-05,2]
[355760539,1741541443595,-534.29,9.342e-05,2]
[355760540,1741541443605,-587.13,9.342e-05,2]
[355760541,1741541443615,-837.01,9.342e-05,2]
[355760542,1741541443625,-698.45,9.342e-05,2]
[355760543,1741541443634,-787.16,9.342e-05,2]
[355760544,1741541443644,-500.0,9.342e-05,2]
[355760545,1741541443653,-1115.59,9.342e-05,2]
[355760546,1741541443663,-500.0,9.342e-05,2]
[355760547,1741541443672,-500.0,9.342e-05,2]
[355760548,1741541443682,-500.0,9.342e-05,2]
[355760549,1741541443692,-831.24,9.342e-05,2]
[355760550,1741541443702,-1253.76,9.342e-05,2]
[355760551,1741541443711,-9512.23,9.342e-05,2]
[355760552,1741541443721,-500.0,9.342e-05,2]
[355760553,1741541443733,-881.48,9.342e-05,2]
[355760554,1741541443744,-500.0,9.342e-05,2]
[355760555,1741541443753,-663.29,9.342e-05,2]
[355760556,1741541443763,-1111.21,9.342e-05,2]
[355760557,1741541443771,-500.0,9.342e-05,2]
[355760558,1741541443781,-1434.22,9.342e-05,2]
[355760559,1741541443790,-500.0,9.342e-05,2]
[355760560,1741541443799,-2195.56,9.342e-05,2]
[355760561,1741541443808,-789.39,9.342e-05,2]